bitfinex/quotes_ETHUSD_20250110
["timestamp","ask_amount","ask_price","bid_price","bid_amount"]
[1736519985939,0.91237628,3248.9,3247.9,3.10960476]
[1736519986136,0.91237628,3248.9,3247.0,0.75892139]
[1736519986431,0.8895,3248.3,3247.0,3.70602139]
[1736519986615,0.8895,3248.3,3247.1,0.03078819]
[1736519986789,0.8895,3248.3,3247.5,3.07925]
[1736519987131,0.8895,3248.3,3247.6,0.0307882]
[1736519987315,0.8262,3249.0,3247.5,0.1326]
[1736519987516,0.8262,3249.0,3247.2,0.1326]
[1736519987717,0.8262,3249.0,3248.0,3.0788]
[1736519987718,0.40287628,3248.9,3248.0,3.0788]
[1736519987902,0.38,3248.8,3248.1,0.03078385]
[1736519988109,0.38,3248.8,3247.6,3.0]
[1736519988318,0.38,3248.8,3247.6,3.03078062]
[1736519988517,0.38,3248.8,3247.7,0.0225]
[1736519988834,0.38,3248.8,3248.4,3.07842]
[1736519989016,0.38,3248.8,3247.5,3.68967998]
[1736519989017,0.38,3248.8,3247.5,0.61047998]
[1736519989230,0.02287628,3248.7,3246.7,3.08002]
[1736519989412,0.8966,3248.6,3247.8,3.07898]
[1736519989612,0.02287628,3248.5,3247.2,0.0075]
[1736519989812,0.02287628,3248.5,3246.6,0.1326]
[1736519989813,0.8317,3248.4,3246.6,0.1326]
[1736519990044,0.8317,3248.2,3246.1,0.1326]
[1736519990241,0.8317,3247.4,3245.7,0.60141843]
[1736519990426,0.8706,3247.2,3245.8,3.08085]
[1736519990634,0.8706,3246.7,3245.0,0.1326]
[1736519990932,0.02287628,3246.6,3245.7,3.08097]
[1736519991130,0.02287628,3246.6,3245.0,0.1326]
[1736519991131,3.0803,3246.5,3245.0,0.1326]
[1736519991300,0.02287628,3246.4,3245.1,3.08156]
[1736519991640,0.8706,3246.7,3245.5,0.0075]
[1736519991796,0.8706,3246.7,3245.6,0.015]
[1736519991992,0.8706,3246.7,3245.5,0.015]
[1736519992199,0.8706,3246.7,3245.5,0.04580231]
[1736519992445,0.867,3247.2,3246.6,3.08014]
[1736519992598,0.867,3247.2,3246.8,3.07993]
[1736519992798,0.867,3247.8,3247.0,0.015]
[1736519992997,0.867,3247.8,3247.2,0.0075]
[1736519993312,0.38,3248.2,3247.7,3.0791]
[1736519993513,0.38,3248.2,3248.1,3.07872]
[1736519993913,0.38,3248.2,3247.8,3.07894]
[1736519994115,0.38,3248.2,3247.9,0.03078493]
[1736519994328,0.38,3248.2,3247.5,0.0075]
[1736519994329,0.38,3248.2,3248.1,3.07872]
[1736519994557,0.02287628,3249.4,3248.7,3.09307]
[1736519994558,0.8346,3248.8,3248.7,3.09307]
[1736519994866,1.1897,3249.4,3247.7,3.0791]
[1736519994995,0.44959428,3249.3,3248.4,3.07838]
[1736519995198,3.10048628,3249.3,3248.0,0.0225]
[1736519995457,0.02287628,3249.3,3247.9,3.07886]
[1736519995619,0.8481,3249.1,3248.0,3.07873]
[1736519995800,3.07799,3248.9,3247.9,3.07889]
[1736519996001,6.45756,3249.4,3247.3,3.0]
[1736519996002,1.18106291,3248.8,3248.2,3.07861]
[1736519996253,0.8481,3248.8,3248.3,0.03078269]
[1736519996583,0.8481,3248.8,3248.3,3.07845]
[1736519996896,0.8481,3248.8,3248.0,0.0225]
[1736519997135,0.8481,3248.8,3247.3,0.73482016]
[1736519997340,4.02180888,3248.3,3247.1,3.07962]
[1736519997536,0.8794,3248.1,3246.4,0.63009559]
[1736519997883,0.38,3248.2,3247.4,0.0075]
[1736519998045,0.38,3248.2,3247.0,0.015]
[1736519998046,0.38,3248.2,3248.0,3.07874]
[1736519998244,0.38,3248.4,3247.7,0.0075]
[1736519998550,0.02287628,3249.1,3248.2,0.0075]
[1736519998551,0.883,3249.1,3248.2,0.0075]
[1736519998707,0.02287628,3249.0,3247.3,3.07943]
[1736519998903,0.02287628,3249.0,3247.2,0.1326]
[1736519999245,0.02287628,3249.0,3247.3,3.07941]
[1736519999550,0.8382,3248.8,3247.4,3.07935]
[1736519999749,0.8382,3248.6,3246.7,3.07997]
[1736519999900,0.8382,3248.6,3246.6,3.21271]
[1736519999901,0.02287628,3248.5,3246.6,3.21271]
[1736520000104,0.02287628,3248.5,3246.8,0.0075]
[1736520000302,0.02287628,3248.5,3246.7,3.0]
[1736520000513,0.38,3248.4,3247.5,3.07928]
[1736520000747,0.8397,3248.2,3248.1,3.07872]
[1736520000980,1.2153,3248.6,3248.4,3.07842]
[1736520001121,1.2153,3248.6,3248.1,3.07866]
[1736520001324,1.2153,3248.6,3247.6,3.07916]
[1736520001523,0.02287628,3248.5,3247.2,3.07948]
[1736520001749,0.02287628,3248.5,3246.6,0.1326]
[1736520001932,0.8481,3248.4,3246.6,0.1326]
[1736520002265,0.02287628,3248.3,3247.0,0.0075]
[1736520002464,0.02287628,3248.3,3247.5,3.07928]
[1736520002821,0.02287628,3248.3,3246.6,6.21273]
[1736520002822,0.8481,3248.4,3248.1,3.07871]
[1736520003135,0.38,3249.2,3248.4,0.0075]
[1736520003349,0.38,3249.3,3249.0,3.07785]
[1736520003543,0.38,3249.3,3249.2,3.07768]
[1736520004861,52.76863209,3250.0,3249.9,3.07701]
[1736520005066,52.76863209,3250.0,3249.9,3.09201]
[1736520005367,52.76863209,3250.0,3249.9,3.07701]
[1736520005582,52.76863209,3250.0,3249.1,0.1326]
[1736520005583,52.76863209,3250.0,3249.6,3.07721]
[1736520005755,52.76863209,3250.0,3248.5,3.07834]
[1736520005756,0.02287628,3249.9,3248.5,3.07834]
[1736520005937,0.8708,3249.8,3247.9,0.1326]
[1736520006140,0.02287628,3249.7,3248.6,3.07824]
[1736520006341,0.8708,3249.6,3247.8,0.015]
[1736520006553,53.64353209,3250.0,3248.6,0.0075]
[1736520006767,0.02287628,3249.9,3248.3,0.1326]
[1736520007066,0.8749,3249.8,3249.2,3.07758]
[1736520007266,52.76863209,3250.0,3249.6,3.07726]
[1736520007471,52.76863209,3250.0,3249.9,3.07701]
[1736520007826,52.76863209,3250.0,3249.9,3.09201]
[1736520008038,52.76863209,3250.0,3249.9,3.09951]
[1736520008238,45.07633209,3250.0,3249.9,3.09951]
[1736520008442,45.07633209,3250.0,3249.9,6.09951]
[1736520008887,45.07633209,3250.0,3249.9,11.09951]
[1736520009053,45.07633209,3250.0,3249.9,6.64951]
[1736520009253,43.53787209,3250.0,3249.9,6.09951]
[1736520009455,37.38403209,3250.0,3249.9,6.64951]
[1736520009690,37.36903209,3250.0,3249.9,6.64951]
[1736520009982,37.36903209,3250.0,3249.9,9.54709905]
[1736520010185,34.29211209,3250.0,3249.9,9.81675905]
[1736520010386,29.67673209,3250.0,3249.9,7.41331905]
[1736520010589,29.67673209,3250.0,3249.9,6.86331905]
[1736520010755,29.67673209,3250.0,3249.9,6.09201]
[1736520011093,22.8831232,3250.0,3249.9,6.64951]
[1736520011385,11.09236012,3250.0,3249.9,9.16815]
[1736520011543,11.09236012,3250.0,3249.9,9.30075]
[1736520011760,11.09236012,3250.0,3249.9,6.78211]
[1736520011955,11.09236012,3250.0,3249.9,11.78211]
[1736520012207,3.40006012,3250.0,3249.9,6.78211]
[1736520012390,3.40006012,3250.0,3249.9,6.23211]
[1736520012814,3.40006012,3250.0,3249.9,6.78211]
[1736520013179,1.2e-07,3250.0,3249.9,10.01611]
[1736520013503,1.2e-07,3250.0,3249.9,6.09201]
[1736520013718,1.2e-07,3250.0,3249.9,3.09201]
[1736520013865,1.2e-07,3250.0,3249.9,0.015]
[1736520014060,1.2e-07,3250.0,3249.9,0.0225]
[1736520014366,1.2e-07,3250.0,3249.1,4.02180888]
[1736520014367,0.8953,3249.9,3248.4,3.68011616]
[1736520014704,0.8825,3249.5,3247.7,0.63138506]
[1736520014907,0.8825,3249.5,3246.5,3.08017]
[1736520014908,0.8825,3248.9,3247.8,3.07898]
[1736520015075,0.02287628,3248.8,3246.7,6.08005]
[1736520015274,0.02287628,3248.8,3247.6,3.07918]
[1736520015611,0.8825,3248.7,3247.7,0.03078445]
[1736520015908,0.8825,3248.7,3247.4,3.20968]
[1736520016092,0.02287628,3249.8,3248.9,3.0075]
[1736520016093,0.8808,3249.8,3248.9,3.0075]
[1736520016296,1.2e-07,3250.0,3248.7,3.0075]
[1736520016297,1.2e-07,3250.0,3249.9,3.07701]
[1736520016617,1.2e-07,3250.0,3249.9,6.09951]
[1736520016811,1.2e-07,3250.0,3249.9,6.64951]
[1736520016964,1.2e-07,3250.0,3249.9,6.09951]
[1736520017508,1.2e-07,3250.0,3249.9,3.09951]
[1736520017715,1.2e-07,3250.0,3249.9,3.13026991]
[1736520017881,1.2e-07,3250.0,3249.9,3.68026991]
[1736520018224,1.2e-07,3250.0,3249.9,3.77981]
[1736520018510,1.2e-07,3250.0,3249.9,3.81056272]
[1736520018682,1.2e-07,3250.0,3249.9,3.77981]
[1736520019008,1.2e-07,3250.0,3249.9,3.81056314]
[1736520019314,0.1677341,3252.3,3251.4,0.0225]
[1736520019315,0.8848,3252.2,3251.4,0.0225]
[1736520019466,0.1677341,3252.3,3252.2,6.09734]
[1736520019668,4.1e-06,3252.3,3252.2,6.09734]
[1736520020114,4.1e-06,3252.3,3252.2,3.09734]
[1736520020468,4.1e-06,3252.3,3252.2,3.12807941]
[1736520020669,4.1e-06,3252.3,3252.2,3.09734]
[1736520020871,4.1e-06,3252.3,3251.2,0.73310115]
[1736520021095,4.1e-06,3252.3,3251.1,4.02180888]
[1736520021304,4.1e-06,3252.3,3250.8,3.07611]
[1736520021508,4.1e-06,3252.3,3251.3,3.07568]
[1736520021708,4.1e-06,3252.3,3250.5,3.07643]
[1736520021938,0.30975604,3252.2,3250.2,0.015]
[1736520022071,0.30975604,3252.2,3250.0,4.02180888]
[1736520022072,0.02287628,3252.1,3250.0,4.02180888]
[1736520022271,3.07549,3251.6,3250.0,3.07691]
[1736520022584,3.07579,3251.2,3249.6,3.07729]
[1736520022786,0.02287628,3251.1,3249.9,0.0225]
[1736520022999,0.02287628,3251.4,3249.6,3.0]
[1736520023302,1.2489,3251.5,3250.3,3.07659]
[1736520023502,1.2489,3251.5,3250.8,0.0225]
[1736520023700,1.2489,3251.5,3251.0,0.0075]
[1736520023902,1.2489,3251.5,3250.1,3.0]
[1736520024113,1.2489,3251.5,3250.8,3.07615]
[1736520024308,1.2489,3251.5,3251.0,0.0075]
[1736520024491,0.8589,3251.5,3251.4,0.0225]
[1736520024816,0.8825,3252.1,3251.0,3.07597]
[1736520024976,0.90537628,3252.1,3251.1,0.015]
[1736520025170,1.2725,3252.1,3251.2,0.0075]
[1736520025373,1.2725,3252.1,3251.8,0.015]
[1736520025574,0.8825,3252.1,3251.4,0.0075]
[1736520025878,0.8825,3252.1,3250.8,3.07613]
[1736520026075,0.8825,3252.1,3250.5,4.02180888]
[1736520026076,0.8825,3252.1,3250.6,3.0]
[1736520026285,0.8825,3252.1,3251.4,0.0225]
[1736520026488,0.8825,3252.1,3251.7,0.0225]
[1736520026734,0.8825,3252.1,3250.5,4.02180888]
[1736520027111,0.02287628,3252.0,3250.8,3.07615]
[1736520027311,0.42089991,3252.0,3250.6,0.0225]
[1736520027609,0.8179,3251.6,3250.0,3.07684]
[1736520027955,0.02287628,3251.5,3249.6,6.07723]
[1736520028244,0.8179,3251.6,3250.6,0.0075]
[1736520028418,0.8179,3251.6,3249.9,3.07694]
[1736520028611,0.8179,3251.6,3250.0,0.03075775]
[1736520028951,0.8179,3251.6,3251.2,3.07571]
[1736520029161,0.8179,3251.6,3250.7,3.0762]
[1736520029460,0.8179,3251.6,3250.3,3.07661]
[1736520029622,0.02287628,3251.5,3250.3,3.07661]
[1736520029963,3.07569,3251.3,3249.5,3.07738]
[1736520030097,0.39162063,3251.4,3248.3,0.1303]
[1736520030098,4.85330888,3250.6,3248.3,0.1303]
[1736520030299,4.02180888,3250.1,3247.8,0.1303]
[1736520030512,3.07728,3249.7,3247.8,3.20929]
[1736520030841,3.90851,3249.9,3248.5,3.07833]
[1736520031039,0.8315,3249.9,3249.1,3.07768]
[1736520031258,0.8315,3249.9,3249.0,0.0075]
[1736520031557,0.8315,3249.9,3249.2,3.07766]
[1736520031763,0.8315,3249.9,3248.7,3.07815]
[1736520031910,0.8315,3249.9,3248.6,3.0]
[1736520032120,0.8315,3249.9,3248.0,3.07881]
[1736520032330,0.8315,3249.9,3248.4,4.63958066]
[1736520032614,0.8315,3249.9,3249.3,3.07757]
[1736520032844,0.8315,3249.9,3249.6,0.0075]
[1736520033082,0.8315,3249.9,3249.6,0.03076751]
[1736520033359,0.8315,3249.9,3247.9,7.10066888]
[1736520033565,0.8315,3249.9,3248.0,3.07877]
[1736520033858,3.8953,3249.2,3248.0,0.04480137]
[1736520034029,4.02180888,3249.6,3248.0,0.04480137]
[1736520034030,3.07824,3248.7,3248.0,0.04480137]
[1736520034229,0.8883,3248.5,3246.7,0.1755]
[1736520034442,0.8883,3248.5,3245.4,3.0812]
[1736520034443,0.8883,3248.3,3246.6,3.08011]
[1736520034642,3.07904,3247.8,3246.8,0.0410676]
[1736520034825,0.02287628,3248.0,3246.7,0.04113237]
[1736520035030,3.10170628,3248.0,3246.8,0.015]
[1736520035371,3.07906,3247.8,3246.8,0.0410676]
[1736520035533,0.8697,3247.2,3245.6,3.08109]
[1736520035733,0.41287628,3247.1,3245.4,0.31842744]
[1736520035960,0.41287628,3247.1,3245.7,0.04178036]
[1736520036173,0.41287628,3247.1,3245.2,0.1755]
[1736520036174,0.39,3247.1,3246.1,3.0806]
[1736520036484,0.02287628,3247.0,3246.2,0.04145632]
[1736520036684,3.07986,3246.9,3246.2,0.04145632]
[1736520036978,0.02287628,3246.8,3246.3,0.04139152]
[1736520037190,0.8698,3246.7,3246.3,0.04139152]
[1736520037389,3.10305628,3246.6,3246.3,0.04139152]
[1736520037679,0.02287628,3246.6,3244.9,0.0075]
[1736520037987,0.02287628,3246.6,3245.6,3.08108]
[1736520038291,3.08042,3246.4,3245.1,3.08147]
[1736520038425,0.42014091,3246.6,3245.7,0.0438533]
[1736520038426,0.8458,3246.2,3245.7,0.0438533]
[1736520038628,0.8458,3246.2,3244.9,3.08174]
[1736520038629,0.02287628,3246.1,3244.9,3.08174]
[1736520038880,0.02287628,3246.1,3244.5,0.015]
[1736520039085,0.8458,3246.2,3245.1,0.015]
[1736520039261,0.393,3246.1,3245.1,0.0458072]
[1736520039444,0.393,3246.1,3245.2,3.08143]
[1736520039783,0.41587628,3246.1,3245.3,0.03080811]
[1736520040072,0.41587628,3246.1,3244.8,0.015]
[1736520040274,0.41587628,3246.1,3244.8,0.0075]
[1736520040573,0.84,3246.0,3244.9,0.04600559]
[1736520040779,0.84,3246.0,3244.5,0.03081055]
[1736520040780,0.02287628,3245.9,3245.1,3.08147]
[1736520041074,0.02287628,3245.9,3245.2,0.04592848]
[1736520041230,0.84,3245.8,3245.2,0.04592848]
[1736520041436,0.84,3245.6,3243.6,0.03081582]
[1736520041637,0.02287628,3245.5,3244.7,3.08188]
[1736520041867,0.02287628,3245.5,3244.4,3.08213]
[1736520042074,0.02287628,3245.5,3244.8,0.04623646]
[1736520042270,0.02287628,3245.5,3244.8,0.0075]
[1736520042486,0.84,3245.6,3244.9,0.07699478]
[1736520042694,0.393,3245.5,3244.9,0.07699478]
[1736520042912,0.02287628,3245.4,3244.9,0.04617971]
[1736520043055,4.12398,3245.0,3243.5,3.08304]
[1736520043263,0.02287628,3244.9,3243.6,3.09045]
[1736520043464,0.02287628,3244.9,3243.6,0.04449743]
[1736520043707,0.5315748,3244.9,3243.6,0.04449743]
[1736520044002,0.02287628,3244.9,3243.5,3.08306]
[1736520044157,3.08185,3244.8,3243.7,0.04443253]
[1736520044358,4.02180888,3245.1,3243.7,0.04443253]
[1736520044359,0.9775,3244.5,3243.7,0.04443253]
[1736520044559,4.05991,3244.3,3242.9,3.08365]
[1736520044760,0.41587628,3244.2,3243.0,3.12761115]
[1736520044995,0.41587628,3244.2,3243.0,0.04407115]
[1736520045360,0.41587628,3244.2,3242.6,3.08391]
[1736520045738,0.41587628,3244.2,3242.5,0.0075]
[1736520045739,0.393,3244.2,3243.0,0.015]
[1736520046005,0.393,3244.2,3242.7,0.0739725]
[1736520046006,0.02287628,3244.1,3243.2,0.0075]
[1736520046298,0.02287628,3244.1,3243.2,3.08335]
[1736520046452,0.02287628,3244.1,3243.3,0.03082869]
[1736520046653,0.9775,3244.3,3243.5,0.0075]
[1736520046884,0.9775,3244.3,3243.5,0.0383232]
[1736520047082,0.9775,3244.3,3242.9,3.0]
[1736520047083,0.9775,3244.3,3243.6,0.04249974]
[1736520047297,0.9775,3244.3,3243.7,0.0225]
[1736520047604,0.9775,3244.3,3243.8,0.0423659]
[1736520047768,0.393,3244.2,3243.8,0.0423659]
[1736520047952,0.393,3244.2,3243.1,3.08338]
[1736520048155,0.9775,3244.3,3243.9,3.08267]
[1736520048528,0.02287628,3244.5,3244.3,0.0225]
[1736520048529,0.393,3244.5,3244.3,0.0225]
[1736520048673,0.9538,3245.3,3244.5,3.08208]
[1736520048876,0.9538,3245.3,3244.4,0.04188774]
[1736520048877,0.97667628,3245.3,3244.4,0.04188774]
[1736520049109,0.97667628,3245.3,3244.6,0.041758]
[1736520049261,0.97667628,3245.3,3243.4,0.6797]
[1736520049482,0.97667628,3245.3,3244.4,3.08222]
[1736520049680,0.9538,3245.3,3244.6,0.0225]
[1736520049975,0.9538,3245.3,3244.5,0.0075]
[1736520050184,1.007,3246.0,3245.5,3.08116]
[1736520050376,1.007,3246.0,3245.7,0.0075]
[1736520050576,0.393,3246.2,3246.0,0.0225]
[1736520050774,1.007,3246.6,3246.5,3.08024]
[1736520051030,1.007,3246.6,3246.5,3.12031813]
[1736520051180,1.007,3246.6,3246.5,0.04007813]
[1736520051379,1.007,3246.6,3245.0,0.62837018]
[1736520051616,0.02287628,3246.5,3245.7,3.08095]
[1736520051818,0.02287628,3246.5,3245.4,0.0075]
[1736520052024,1.007,3246.6,3246.4,3.08033]
[1736520052326,1.007,3246.6,3246.2,0.0075]
[1736520052527,1.007,3246.6,3246.5,0.03772678]
[1736520052686,1.007,3246.6,3246.4,3.08026]
[1736520053036,1.007,3246.6,3246.5,3.11787006]
[1736520053176,1.007,3246.6,3246.5,0.03763006]
[1736520053382,1.007,3246.6,3245.5,3.08115]
[1736520053576,1.007,3246.6,3245.7,3.08099]
[1736520053796,0.02287628,3246.5,3245.8,3.08082]
[1736520054033,1.007,3246.6,3246.0,3.08067]
[1736520054382,1.007,3246.6,3246.1,0.03519766]
[1736520054582,1.007,3246.6,3246.1,0.0225]
[1736520054814,1.007,3246.6,3246.4,3.08032]
[1736520055198,1.4245,3247.2,3246.8,3.07988]
[1736520055437,7.10021888,3248.5,3246.8,3.07988]
[1736520055438,1.4245,3247.8,3247.1,3.07967]
[1736520055594,1.4245,3247.8,3247.4,3.07937]
[1736520055595,1.0315,3247.8,3247.4,3.07937]
[1736520055777,0.02287628,3248.9,3247.7,0.0075]
[1736520055778,0.9856,3248.3,3247.7,0.0075]
[1736520055977,0.9856,3248.3,3247.6,0.015]
[1736520056299,0.9856,3248.3,3248.2,3.07862]
[1736520056498,0.393,3248.8,3248.2,0.015]
[1736520056702,0.393,3248.8,3248.3,0.0225]
[1736520057018,0.393,3248.8,3248.5,0.0075]
[1736520057200,0.393,3248.8,3248.7,3.07815]
[1736520057399,0.393,3248.8,3248.6,0.0329551]
[1736520057696,1.0176,3249.7,3249.6,3.0773]
[1736520057936,0.393,3250.1,3249.7,3.0772]
[1736520058086,0.9518,3250.2,3249.9,3.077]
[1736520058284,0.9518,3250.2,3249.8,0.06294772]
[1736520058493,0.9518,3250.2,3250.0,0.03433891]
[1736520058686,0.9518,3250.2,3249.9,0.03440818]
[1736520059031,0.9518,3250.2,3250.0,0.03433891]
[1736520059439,0.9518,3250.2,3249.1,0.0225]
[1736520059597,1.393935,3250.2,3249.4,3.07746]
[1736520059800,0.02287628,3250.1,3249.5,0.03237294]
[1736520060002,0.02287628,3250.1,3249.2,3.07767]
[1736520060251,0.02287628,3250.1,3249.3,0.03250228]
[1736520060406,1.011,3250.0,3249.3,0.03250228]
[1736520060653,0.02287628,3250.1,3248.0,3.07881]
[1736520060654,1.011,3249.7,3248.0,3.07881]
[1736520060791,3.07739,3249.5,3248.1,3.07863]
[1736520060985,3.07739,3249.5,3248.0,3.07881]
[1736520060986,1.011,3249.3,3248.0,3.07881]
[1736520061188,3.07826,3248.6,3248.1,0.03463335]
[1736520061490,3.0787,3248.2,3246.2,3.08052]
[1736520061718,0.02287628,3248.1,3246.1,3.76031]
[1736520061922,0.9677,3248.0,3246.3,0.0349112]
[1736520062126,3.0791,3247.7,3246.2,0.03389063]
[1736520062328,3.07976,3247.0,3246.4,0.03375178]
[1736520062590,0.52950759,3247.6,3246.5,0.03368237]
[1736520062591,0.41587628,3246.9,3246.5,0.03368237]
[1736520062791,0.41587628,3246.9,3245.4,1.3102554]
[1736520063015,0.41587628,3246.9,3246.0,0.0075]
[1736520063217,1.0107,3246.8,3245.9,3.08076]
[1736520063548,1.0107,3246.8,3246.1,0.03831462]
[1736520063710,1.03357628,3246.8,3246.2,3.0805]
[1736520063914,1.0107,3246.8,3246.2,0.03277167]
[1736520064316,0.393,3246.7,3244.9,3.7614]
[1736520064544,1.034,3247.3,3246.3,0.03270225]
[1736520064871,0.393,3247.6,3246.7,0.0075]
[1736520065016,0.02287628,3247.5,3246.4,0.03263282]
[1736520065223,3.07958,3247.2,3246.8,0.03235518]
[1736520065421,0.9902,3247.0,3245.4,3.08128]
[1736520065671,0.9902,3247.0,3245.9,3.08079]
[1736520065672,0.02287628,3246.9,3245.9,3.08079]
[1736520066131,3.10274628,3246.9,3246.0,0.03291053]
[1736520066335,0.02287628,3246.9,3246.0,0.03291053]
[1736520066556,0.02287628,3246.9,3245.5,0.0075]
[1736520066861,0.395,3246.8,3245.6,0.03318831]
[1736520067017,1.05347628,3246.7,3245.6,0.03318831]
[1736520067352,1.0306,3246.5,3245.6,0.03318831]
[1736520067532,3.08047,3246.3,3245.1,3.08155]
[1736520067737,1.0306,3246.5,3245.7,0.0330455]
[1736520067738,0.02287628,3246.2,3245.7,0.0330455]
[1736520068045,0.02287628,3246.4,3244.4,3.08223]
[1736520068280,1.0159,3246.3,3244.2,1.30632347]
[1736520068480,0.02287628,3246.2,3244.5,0.06468901]
[1736520068680,0.02287628,3246.2,3244.7,3.0]
[1736520068882,0.395,3246.2,3244.8,0.04580779]
[1736520069104,0.41787628,3246.2,3245.3,3.08131]
[1736520069248,0.41787628,3246.2,3244.8,0.03367071]
[1736520069450,0.41787628,3246.2,3245.4,0.03325387]
[1736520069753,1.0159,3246.3,3245.2,0.0225]
[1736520070065,0.395,3246.7,3245.3,3.03421165]
[1736520070263,0.41787628,3246.6,3245.3,0.03421165]
[1736520070485,3.08033,3246.4,3245.3,0.03421165]
[1736520070709,3.51322928,3246.3,3245.3,0.03421165]
[1736520070854,1.04117628,3246.5,3245.4,0.0075]
[1736520071202,1.04117628,3246.5,3245.2,3.08146]
[1736520071402,0.9912,3246.1,3245.3,0.03420302]
[1736520071605,0.02287628,3246.0,3245.3,0.0075]
[1736520071895,0.9912,3246.1,3245.0,0.0075]
[1736520072119,0.9912,3246.1,3246.0,3.08071]
[1736520072326,1.0375,3246.7,3245.8,3.0809]
[1736520072479,0.02287628,3247.1,3246.7,3.07996]
[1736520072480,0.395,3247.1,3246.7,3.07996]
[1736520072671,0.395,3247.1,3247.0,3.07976]
[1736520073065,0.395,3247.1,3247.0,0.03302272]
[1736520073317,0.395,3247.1,3247.0,3.11278272]
[1736520073619,1.0251,3247.9,3247.8,3.079]
[1736520073768,1.0251,3248.5,3247.2,3.11029598]
[1736520073968,1.0251,3248.5,3248.0,3.07877]
[1736520074194,1.0251,3248.5,3248.1,0.03078373]
[1736520074402,1.0251,3248.5,3248.1,0.06841999]
[1736520074715,1.0251,3248.5,3248.1,0.03763626]
[1736520075026,0.02287628,3248.4,3248.1,0.03763626]
[1736520075173,0.02287628,3248.4,3247.3,3.07946]
[1736520075369,0.41263463,3248.3,3247.4,3.07936]
[1736520075616,0.02287628,3248.2,3247.4,3.07936]
[1736520075777,0.02287628,3248.2,3247.5,0.0367162]
[1736520075982,1.0251,3248.5,3247.4,3.0]
[1736520076185,0.9803,3249.6,3248.2,0.015]
[1736520076509,0.9803,3249.6,3248.9,0.015]
[1736520076668,0.9803,3249.6,3249.4,3.07748]
[1736520076867,0.395,3249.9,3249.4,3.07748]
[1736520077117,5.2983,3250.0,3249.7,3.07718]
[1736520077271,0.9803,3250.0,3249.6,0.0075]
[1736520077467,0.9803,3250.0,3249.8,0.04182725]
[1736520077702,0.9803,3250.0,3249.6,0.0075]
[1736520077703,0.9803,3250.0,3249.7,0.07269232]
[1736520077903,0.9803,3250.0,3249.9,0.04173027]
[1736520078087,0.9803,3250.0,3249.0,3.09281]
[1736520078088,0.395,3250.2,3249.8,0.04182725]
[1736520078299,0.395,3250.2,3249.9,0.04173027]
[1736520078470,0.395,3250.2,3249.7,3.07719]
[1736520078667,0.395,3250.2,3248.9,3.0]
[1736520078926,0.395,3250.2,3248.5,3.07829]
[1736520078927,0.395,3250.2,3249.0,0.03076748]
[1736520079083,0.395,3250.2,3249.5,3.07737]
[1736520079288,0.395,3250.2,3249.0,0.03076748]
[1736520079289,0.9854,3251.0,3250.4,3.07654]
[1736520079468,0.395,3251.4,3250.6,0.0225]
[1736520079669,0.395,3251.4,3250.8,0.0075]
[1736520079885,0.395,3251.4,3249.7,4.70850888]
[1736520079886,0.395,3251.4,3249.7,0.6867]
[1736520080227,0.41787628,3251.3,3250.0,0.0225]
[1736520080388,0.9854,3251.6,3250.6,0.0075]
[1736520080587,3.07402,3253.1,3250.6,0.0075]
[1736520080588,1.3625,3252.1,3251.0,0.0075]
[1736520080788,0.9675,3252.1,3251.2,0.0075]
[1736520081321,0.02287628,3253.2,3252.7,3.07436]
[1736520081525,0.395,3253.6,3252.8,0.03074059]
[1736520081674,0.395,3253.6,3252.9,0.015]
[1736520081869,0.9798,3253.8,3253.2,3.07388]
[1736520082088,0.9798,3253.8,3253.3,0.03073459]
[1736520082298,1.05947628,3254.6,3253.5,0.0075]
[1736520082497,1.0366,3254.6,3254.0,3.07313]
[1736520082821,1.0366,3254.6,3254.1,0.0307255]
[1736520083024,1.0366,3254.6,3254.3,3.07285]
[1736520083304,0.395,3254.7,3254.5,0.0225]
[1736520083447,0.395,3254.7,3253.3,3.0738]
[1736520083647,0.395,3254.7,3253.4,3.10442591]
[1736520083866,0.395,3254.7,3253.8,3.07329]
[1736520084148,3.09497628,3255.1,3253.2,4.70850888]
[1736520084149,0.02287628,3255.1,3253.3,3.0738]
[1736520084349,0.395,3254.6,3254.1,0.0075]
[1736520084509,0.82878763,3255.0,3254.1,3.11125482]
[1736520085020,0.9551,3255.3,3254.2,0.015]
[1736520085219,0.9551,3255.3,3254.5,0.0075]
[1736520085421,0.9551,3255.3,3254.6,0.015]
[1736520085639,0.1677382,3255.5,3254.7,0.03071653]
[1736520085838,8.2e-06,3255.5,3255.4,7.04430888]
[1736520086038,8.2e-06,3255.5,3255.4,8.28100888]
[1736520086251,8.2e-06,3255.5,3255.4,11.51500888]
[1736520086462,8.2e-06,3255.5,3255.4,8.28100888]
[1736520086661,8.2e-06,3255.5,3255.4,11.56454888]
[1736520086863,8.2e-06,3255.5,3255.4,7.73100888]
[1736520087011,8.2e-06,3255.5,3255.4,3.7092]
[1736520087210,8.2e-06,3255.5,3255.4,0.0225]
[1736520087564,8.2e-06,3255.5,3255.4,7.07501752]
[1736520087755,8.2e-06,3255.5,3255.4,7.04430888]
[1736520088055,8.2e-06,3255.5,3255.4,3.0225]
[1736520088555,8.2e-06,3255.5,3255.0,3.07215]
[1736520088767,8.2e-06,3255.5,3254.5,3.08766]
[1736520088964,8.2e-06,3255.5,3255.4,0.0225]
[1736520089168,8.2e-06,3255.5,3255.4,0.0532117]
[1736520089457,8.2e-06,3255.5,3255.4,3.0225]
[1736520089807,8.2e-06,3255.5,3254.9,0.62704097]
[1736520090011,8.2e-06,3255.5,3254.9,3.69930097]
[1736520090242,8.2e-06,3255.5,3254.4,0.6867]
[1736520090459,0.9538082,3255.5,3254.6,3.07255]
[1736520090660,0.9538082,3255.5,3254.7,0.03071823]
[1736520090844,0.9538082,3255.5,3253.8,0.6867]
[1736520090845,0.02287628,3255.4,3253.8,0.6867]